Cogmind - Beta 15 @@@ ROGUE MODE // 2025.09.06 @ 15:03:35 Player: Ice_Kraken505 Result: Self-destructed Performance ------------- Evolutions (2) 1000 Regions Visited (5) 1000 Robots Destroyed (25) 125 Value Destroyed (526) 526 Prototype IDs (23) 460 Alien Tech Used (0) 0 Bonus (300) 300 TOTAL SCORE: 3411 Bonus ------- Aligned with FarCom 300 Cogmind --------- Core Integrity 280/550 Matter 299/300 Energy 99/100 System Corruption 5% Temperature Cool (0) Movement Core (50) Location -8/Materials Parts ------- > --- POWER (2) -------- (None) > --- PROPULSION (3) --- (None) > --- UTILITY (4) ------ Visual Processing Unit Modified TNC System Shield Authchip [Weapon] > --- WEAPON (2) ------- (None) > --- INVENTORY (5) ---- Heat Sink Improved Datajack Peak State ------------ > --- POWER ------------ Light Ion Engine Light Nuclear Core > --- PROPULSION ------- VTOL Module VTOL Module VTOL Module > --- UTILITY ---------- Visual Processing Unit Improved Terrain Scanner Modified TNC System Shield > --- WEAPON ----------- Particle Gun Improved Datajack > --- INVENTORY -------- Authchip [Weapon] [Rating: 29] Favorites ----------- Power Light Ion Engine Engine Light Ion Engine Power Core Light Nuclear Core Propulsion Flight Unit Treads Light Treads Hover Unit Hover Unit Flight Unit Flight Unit Utility Visual Processing Unit Device Improved Terrain Scanner Storage Small Storage Unit Processor Visual Processing Unit Hackware System Shield Weapon Light Assault Rifle Energy Gun Particle Gun Ballistic Gun Light Assault Rifle Launcher Rocket Launcher Special Melee Weapon Improved Datajack Build | -11 -10 -10 -10 -9 -8 ------- Run | Yrd Mat Min Exi Min Mat Slots Evolved 4 | . . . . . 4 Power 1 | . . . . . 1 Propulsion 1 | . . . . . 1 Utility 2 | . . . . . 2 Weapon . | . . . . . . Parts Attached 31 | 7 4 2 1 1 16 Power 4 | 1 1 . . . 2 Engine 3 | 1 1 . . . 1 Core 1 | . . . . . 1 Reactor . | . . . . . . Propulsion 11 | 2 2 2 . . 5 Treads 4 | 2 . . . . 2 Leg . | . . . . . . Wheel . | . . . . . . Hover 2 | . 2 . . . . Flight 5 | . . 2 . . 3 Utility 8 | 2 1 . 1 . 4 Device 3 | 1 . . . . 2 Storage 1 | 1 . . . . . Processor 2 | . 1 . 1 . . Hackware 2 | . . . . . 2 Protection . | . . . . . . Artifact . | . . . . . . Weapon 8 | 2 . . . 1 5 Energy Gun 2 | . . . . . 2 Energy Cannon . | . . . . . . Ballistic Gun 3 | 2 . . . . 1 Ballistic Cannon . | . . . . . . Launcher 1 | . . . . 1 . Special Weapon . | . . . . . . Impact Weapon . | . . . . . . Slashing Weapon . | . . . . . . Piercing Weapon . | . . . . . . Special Melee Weapon 2 | . . . . . 2 Unidentified Prototypes . | . . . . . . Corrupted Parts 1 | . . . . . 1 System Corruption 5 | . . . . . 5 Parts Lost 9 | . . . . . 9 Power 2 | . . . . . 2 Propulsion 3 | . . . . . 3 Utility 2 | . . . . . 2 Weapon 2 | . . . . . 2 Highest Loss Streak 3 | . . . . . 3 To Critical Strikes . | . . . . . . Average Backups 2 | 3 4 3 3 3 2 Power . | . . . 1 1 . Propulsion . | . . . . . . Utility 1 | 1 2 2 2 2 . Weapon . | . 1 . . . . Tool/Special . | . . . . . . Unused Backups 2 | . . 1 . . 1 Power . | . . . . . . Propulsion . | . . . . . . Utility 1 | . . . . . 1 Weapon 1 | . . 1 . . . Tool/Special . | . . . . . . Average Slot Usage (%) 85 | . 81 82 75 87 86 Engine 11 | . 13 14 14 14 10 Core 1 | . . . . . 1 Treads 6 | . 24 . . . 6 Flight 15 | . . 7 28 28 14 Device 9 | . . . . . 11 Storage 1 | . 14 11 . . . Processor 17 | . . 14 18 28 18 Hackware 3 | . . . . . 4 Ballistic Gun 10 | . 26 14 14 14 8 Special Melee Weapon 6 | . . . . . 8 Peak Build Rating 29 | 7 7 7 12 14 29 Average Rating 17 | 5 5 6 8 12 22 On Entrance 7 | . 6 7 6 12 14 Naked Turns . | . . . . . . Heaviest Build 13 | 13 13 9 4 8 13 Greatest Support 42 | 40 40 12 8 8 42 Greatest Overweight (x) 3 | . 1 . . . 3 Average Overweight (x) . | . . . . . . Largest Inventory Capacity 8 | 8 8 8 5 5 5 Average Capacity 5 | 7 8 7 5 5 5 Most Carried 7 | 4 7 6 4 5 5 Average Carried 2 | 3 4 3 3 3 2 Final Capacity 8 | 8 8 5 5 5 5 Final Carried 4 | 4 3 3 3 4 2 Class Distribution -------------------- 43% | Scavenger-Assassin 30% | Mutant 9% | Scout 8% | Scavenger-Scout 3% | Scavenger-Skirmisher 3% | Assassin Dominant Class ---------------- Mutant | -10/Materials Mutant | -10/Mines Mutant | -10/Exiles Scout | -9/Mines Scavenger-Assassin | -8/Materials Resources | -11 -10 -10 -10 -9 -8 ----------- Run | Yrd Mat Min Exi Min Mat Matter Collected 973 | 446 18 40 . 76 393 Remotely . | . . . . . . Salvage Created 807 | 264 104 . . . 439 Parts 47 | 21 9 . . . 17 Haulers Intercepted . | . . . . . . Recyclers Shooed 1 | . . . . . 1 Parts Field Recycled . | . . . . . . Retrieved Matter . | . . . . . . Parts Self-Destructed . | . . . . . . Prevented . | . . . . . . Kills | -11 -10 -10 -10 -9 -8 ------- Run | Yrd Mat Min Exi Min Mat Combat Hostiles Destroyed 9 | . . . . . 9 Guns 9 | . . . . . 9 Classes Destroyed 7 | 3 2 . . . 2 Worker 4 | 4 . . . . . Tunneler 8 | 8 . . . . . Recycler 2 | 1 1 . . . . Operator 1 | . 1 . . . . Watcher 1 | . 1 . . . . Grunt 7 | . . . . . 7 Sentry 2 | . . . . . 2 Best Kill Streak 4 | 4 1 . . . 3 Combat Bots Only 3 | . . . . . 3 Max Kills in Single Turn 1 | 1 1 . . . 1 Gunslinging . | . . . . . . Exploded . | . . . . . . Melee . | . . . . . . Uniques/NPCs Destroyed . | . . . . . . Combat | -11 -10 -10 -10 -9 -8 -------- Run | Yrd Mat Min Exi Min Mat Hostile Shots Fired 86 | . . . . . 86 Missed 22 | . . . . . 22 Hits 64 | . . . . . 64 Projectile 64 | . . . . . 64 Critical Strikes 6 | . . . . . 6 Damage Taken 1097 | . . . . . 1097 Core 270 | . . . . . 270 Absorbed by Shields . | . . . . . . Core Remaining (%) 100 | 100 . . . 100 . Volleys Fired 116 | 44 14 . . . 58 Largest 2 | 2 2 . . . 2 Hottest 121 | 40 40 . . . 121 Shots Fired 192 | 88 28 . . . 76 Gun 192 | 88 28 . . . 76 Cannon . | . . . . . . Launcher . | . . . . . . Special . | . . . . . . Kinetic 168 | 88 28 . . . 52 Thermal 24 | . . . . . 24 Explosive . | . . . . . . Electromagnetic . | . . . . . . Robot Hit Streak 18 | 7 5 . . . 18 Robot Miss Streak 5 | 5 3 . . . 3 Penetration Max . | . . . . . . Secondary Targets . | . . . . . . Shots Hit Robots 135 | 50 15 . . . 70 Core Hits 59 | 20 6 . . . 33 Critical Kills . | . . . . . . Critical Parts Destroyed . | . . . . . . Critical Strikes 2 | . . . . . 2 Burn 2 | . . . . . 2 Melee Attacks 8 | . . . . . 8 Impact . | . . . . . . Slashing . | . . . . . . Piercing . | . . . . . . Sneak Attacks 4 | . . . . . 4 Combat Hostiles . | . . . . . . Follow-up Attacks . | . . . . . . Damage Inflicted 1538 | 529 151 . . . 858 Guns 1502 | 529 145 . . . 828 Cannons . | . . . . . . Explosions . | . . . . . . Melee . | . . . . . . Ramming 36 | . 6 . . . 30 Kinetic 1253 | 529 145 . . . 579 Thermal 249 | . . . . . 249 Explosive . | . . . . . . Electromagnetic . | . . . . . . Impact . | . . . . . . Slashing . | . . . . . . Piercing . | . . . . . . Highest Corruption 5 | . . . . . 5 Average Corruption 5 | . . . . . 5 Corruption Purged . | . . . . . . Corruption Blocked . | . . . . . . Overload Shots . | . . . . . . Overflow Damage . | . . . . . . Projectiles . | . . . . . . Explosions . | . . . . . . Melee . | . . . . . . Knockbacks . | . . . . . . Impact . | . . . . . . Kinetic . | . . . . . . Secondary . | . . . . . . Self-Inflicted Damage 13 | . . . . . 13 Shots . | . . . . . . Rammed 7 | . 1 . . . 6 Targets Rammed 7 | . 1 . . . 6 Kicked . | . . . . . . Crushed . | . . . . . . Highest Temperature 320 | . . . . . 320 Average Temperature 143 | . . . . . 143 Received Heat Transfer 639 | . . . . . 639 Effects 3 | . . . . . 3 Interference 3 | . . . . . 3 Siege Activations . | . . . . . . Martial Activations . | . . . . . . Shielding Activations . | . . . . . . Robots Disrupted . | . . . . . . Combat Hostiles . | . . . . . . Robots Corrupted . | . . . . . . Combat Hostiles . | . . . . . . Parts Fried . | . . . . . . Impact Corruptions . | . . . . . . Robots Melted . | . . . . . . Combat Hostiles . | . . . . . . Parts Melted 4 | . . . . . 4 Heat Transferred 740 | . . . . . 740 Parts Sabotaged . | . . . . . . Parts Stolen . | . . . . . . Parts Stripped . | . . . . . . Power Chain Reactions . | . . . . . . Alert | -11 -10 -10 -10 -9 -8 ------- Run | Yrd Mat Min Exi Min Mat Maximum Alert Level . | . . . . . . Low Security (%) 100 | 100 100 100 . 100 100 Level 1 . | . . . . . . Level 2 . | . . . . . . Level 3 . | . . . . . . Level 4 . | . . . . . . Level 5 . | . . . . . . High Security . | . . . . . . Max Security . | . . . . . . Peak Influence 155 | 10 5 20 . . 155 Initial . | . . . . . . Average 14 | 1 . 3 . . 20 Influence Increases 452 | 65 17 30 . . 340 Destroy 0b10 Robot/C 180 | . . . . . 180 Destroy 0b10 Robot/NC 80 | 65 15 . . . . Destroy Leader 42 | . 2 . . . 40 Successful Hack 30 | . . . . . 30 Partial Spotted 60 | . . . . . 60 Lose Combat Pursuer 60 | . . 30 . . 30 Influence Decreases 318 | 65 17 30 . . 206 Time Decay 248 | 65 17 30 . . 136 Lost Part 70 | . . . . . 70 Squads Dispatched 3 | . . . . . 3 Investigation 3 | . . . . . 3 Extermination . | . . . . . . Reinforcement . | . . . . . . Assault . | . . . . . . Garrison . | . . . . . . Intercept . | . . . . . . Searches Triggered . | . . . . . . Construction Impeded . | . . . . . . Haulers Reinforced . | . . . . . . Active Scanning Responses . | . . . . . . Cargo Convoy Interrupts . | . . . . . . Stealth | -11 -10 -10 -10 -9 -8 --------- Run | Yrd Mat Min Exi Min Mat Distress Signals 3 | . . . . . 3 Communications Jammed . | . . . . . . Distress Signals . | . . . . . . Times Spotted 25 | . 4 4 . . 17 Peak Tracking Total 5 | . 1 3 . . 5 Tactical Retreats 4 | . . 2 . . 2 Traps | -11 -10 -10 -10 -9 -8 ------- Run | Yrd Mat Min Exi Min Mat Traps Triggered 4 | . 2 . . . 2 Indirectly . | . . . . . . Trap Hack Attempts . | . . . . . . Triggered . | . . . . . . Disarmed . | . . . . . . Reprogrammed . | . . . . . . Reused . | . . . . . . Traps Extracted . | . . . . . . Installed . | . . . . . . Triggered . | . . . . . . Machines | -11 -10 -10 -10 -9 -8 ---------- Run | Yrd Mat Min Exi Min Mat Machines Disabled . | . . . . . . Max in Single Turn . | . . . . . . Garrison Access 1 | . . . . . 1 Machines Repaired . | . . . . . . Machines Dismantled . | . . . . . . Machines Sabotaged . | . . . . . . Overloaded Fab Kills . | . . . . . . Hacking | -11 -10 -10 -10 -9 -8 --------- Run | Yrd Mat Min Exi Min Mat Machines Accessed 15 | . 2 . 5 . 8 Terminals 8 | . 2 . . . 6 Fabricators . | . . . . . . Repair Stations . | . . . . . . Recycling Units 1 | . . . . . 1 Scanalyzers . | . . . . . . Garrison Access 1 | . . . . . 1 Total Hacks 80 | . 6 . 50 . 24 Successful 66 | . 4 . 50 . 12 Failed 14 | . 2 . . . 12 Catastrophic 4 | . . . . . 4 Database Lockouts . | . . . . . . Manual 16 | . 3 . 2 . 11 Terminals 26 | . 6 . . . 20 Fabricators . | . . . . . . Repair Stations . | . . . . . . Recycling Units 3 | . . . . . 3 Scanalyzers . | . . . . . . Garrison Access 1 | . . . . . 1 Terminal Hacks 56 | . 2 . 50 . 4 Record 50 | . . . 49 . 1 Robot Analysis 2 | . . . . . 2 Emergency Access Points 2 | . 1 . . . 1 Hauler Manifests 1 | . 1 . . . . Proto ID Catalog 1 | . . . 1 . . Fabricator Hacks . | . . . . . . Repair Station Hacks . | . . . . . . Recycling Unit Hacks 2 | . . . . . 2 Report Inventory 1 | . . . . . 1 Retrieve Components 1 | . . . . . 1 Scanalyzer . | . . . . . . Garrison Access Hacks 1 | . . . . . 1 Seal Access 1 | . . . . . 1 Unauthorized Hacks 7 | . 2 . . . 5 Terminals 7 | . 2 . . . 5 Track 6 | . 2 . . . 4 Operators 1 | . . . . . 1 Fabricators . | . . . . . . Repair Stations . | . . . . . . Recycling Units . | . . . . . . Scanalyzers . | . . . . . . Garrison Access . | . . . . . . Data Cores Recovered . | . . . . . . Used . | . . . . . . Hacking Detections 8 | . 2 . . . 6 Full Trace Events 5 | . 1 . . . 4 Feedback Events . | . . . . . . Feedback Blocked . | . . . . . . Robot Schematics Acquired . | . . . . . . Robots Built . | . . . . . . Authchips . | . . . . . . Time . | . . . . . . Total Robot Build Rating . | . . . . . . Part Schematics Acquired . | . . . . . . Parts Built . | . . . . . . Authchips . | . . . . . . Time . | . . . . . . Total Part Build Rating . | . . . . . . Parts Repaired . | . . . . . . Time . | . . . . . . Parts Recycled . | . . . . . . Recycled Matter . | . . . . . . Retrieved Matter . | . . . . . . Retrieved Components 2 | . . . . . 2 Parts Scanalyzed . | . . . . . . Part Schematics Acquired . | . . . . . . Parts Damaged . | . . . . . . Bothacking | -11 -10 -10 -10 -9 -8 ------------ Run | Yrd Mat Min Exi Min Mat Used RIF Installer . | . . . . . . Robots Hacked 4 | . . . . . 4 Non-combat 2 | . . . . . 2 Combat 2 | . . . . . 2 Robot Hacks Applied 4 | . . . . . 4 parse_system 2 | . . . . . 2 no_distress 2 | . . . . . 2 Relay Couplers Released . | . . . . . . Fabnet Peak Effective % . | . . . . . . Robots Rewired . | . . . . . . Allies Hacked . | . . . . . . Hacks Repelled . | . . . . . . Allies | -11 -10 -10 -10 -9 -8 -------- Run | Yrd Mat Min Exi Min Mat Total Allies . | . . . . . . Largest Group . | . . . . . . Highest-Rated Group . | . . . . . . Highest-Rated Ally . | . . . . . . Total Orders . | . . . . . . Ally Attacks . | . . . . . . Total Damage . | . . . . . . Kills . | . . . . . . Allies Corrupted . | . . . . . . Allies Melted . | . . . . . . Intel | -11 -10 -10 -10 -9 -8 ------- Run | Yrd Mat Min Exi Min Mat Active Infowar (turns) 3344 | 1 10 134 291 200 2708 Optics 3343 | . 10 134 291 200 2708 Sensors 1091 | . . . . . 1091 Terrain 2517 | . . . . . 2517 Seismic 1 | 1 . . . . . T.N.C. 2986 | . . . 98 200 2688 Robot Analysis Total 2 | . . . . . 2 Derelict Logs Recovered 2 | . . 1 . 1 . Drone Launches . | . . . . . . Drone Recoveries . | . . . . . . Exploration | -11 -10 -10 -10 -9 -8 ------------- Run | Yrd Mat Min Exi Min Mat Turns Passed 4180 | 675 172 134 291 200 2708 Spaces Moved 2313 | 316 83 128 755 420 611 Core 30 | 5 3 . . . 22 Treads 583 | 311 63 . . . 209 Legs . | . . . . . . Wheels . | . . . . . . Hover 107 | . 17 90 . . . Flight 1593 | . . 38 755 420 380 Fastest Speed 29 | 50 56 37 37 37 29 Average Speed 73 | 158 136 50 37 37 96 Slowest Speed 200 | 160 160 56 37 37 200 Overloaded Moves . | . . . . . . Propulsion Burnouts . | . . . . . . Robots Hopped 3 | . . . . 2 1 Potential Cave-ins . | . . . . . . Cave-ins Triggered . | . . . . . . Exploration Rate (%) 50 | 10 22 54 94 87 38 Regions Visited 5 Branch Regions 3 Pre-discovered Areas 2 | . . 1 1 . . Known Exits Taken . | . . . . . . Unknown Exits Taken 5 | 1 1 1 1 1 . Scrap Searched 3 | . . . . 3 . Spaces Dug . | . . . . . . Terrain Destroyed . | . . . . . . Melee . | . . . . . . Projectile . | . . . . . . AOE . | . . . . . . Terrain Rammed . | . . . . . . Walls Destroyed . | . . . . . . Machines Disabled . | . . . . . . Actions | -11 -10 -10 -10 -9 -8 --------- Run | Yrd Mat Min Exi Min Mat Total 4614 | 412 115 197 766 461 2663 Wait 2067 | 35 11 61 10 41 1909 Move 2302 | 315 82 127 754 415 609 Hop 3 | . . . . 2 1 Pick Up 34 | 10 3 3 1 2 15 Fast Attach . | . . . . . . Attach 40 | 7 4 . 1 1 27 Detach 14 | 1 . . . . 13 Swap 9 | . . 2 . . 7 Drop 14 | . . 4 . . 10 Fire 116 | 44 14 . . . 58 Melee 8 | . . . . . 8 Ram 6 | . . . . . 6 Kick . | . . . . . . Crush 1 | . 1 . . . . Escape Stasis . | . . . . . . Rewire . | . . . . . . Trap . | . . . . . . Miscellaneous . | . . . . . . Route ------- -11/Scrapyard -10/Materials -10/Mines (discovered 2 exits: [*Mat] / *Exi) -10/Exiles (discovered 2 exits: [*Min x2]) -9/Mines -8/Materials History --------- Turn | Location | Event 10 | -11/Scrapyard | Discovered new exit (range 15) 676 | -11/Scrapyard | Entered Materials 693 | -10/Materials | Build established: Mutant 757 | -10/Materials | Met 8R-AWN 844 | -10/Materials | Discovered new exit (range 9) 848 | -10/Materials | Entered Mines 849 | -10/Mines | Followed 8R-AWN into the Mines 855 | -10/Mines | Discovered new exit (range 12) 934 | -10/Mines | Learned location of Mines (-9) 957 | -10/Mines | A weapon hastily lodged in a ceiling crevice suddenly fell to the ground 976 | -10/Mines | Discovered new exit (range 5) 982 | -10/Mines | Entered Exiles 988 | -10/Exiles | Discovered new exit (range 17) 992 | -10/Exiles | Welcomed by 8R-AWN 1002 | -10/Exiles | Met EX-HEX 1015 | -10/Exiles | Met EX-DEC 1030 | -10/Exiles | Visited The Gauntlet 1083 | -10/Exiles | Discovered new exit (range 10) 1111 | -10/Exiles | Met EX-BIN 1117 | -10/Exiles | Learned location of Zion (-6) 1157 | -10/Exiles | Aligned with FarCom system 1157 | -10/Exiles | Given EX-Vault access code 1172 | -10/Exiles | Opened EX-Vault 1174 | -10/Exiles | Found Modified TNC 1184 | -10/Exiles | Warned to stay clear of 0b10 Research branches 1201 | -10/Exiles | Learned about 8R-AWN's background 1273 | -10/Exiles | Left Exiles lab with Modified TNC 1273 | -10/Exiles | Entered Mines 1280 | -9/Mines | Assembled infested the area 1433 | -9/Mines | Received a Rocket Launcher from a helpful Derelict 1439 | -9/Mines | Learned 2 Materials zone layouts 1471 | -9/Mines | Discovered new exit (range 5) 1473 | -9/Mines | Entered Materials 1473 | -8/Materials | Evolved 4 slots: Power x1, Propulsion x1, Utility x2 1867 | -8/Materials | Build established: Scavenger-Assassin 4181 | -8/Materials | Self-destructed Last Messages --------------- Acquired 5 matter. K-01 Serf collects debris. Acquired 15 matter. K-01 Serf collects debris. W-25 Informer sends out distress signal. K-01 Serf collects debris. VTOL Module destroyed. Hpw. Shotgun destroyed. Particle Gun destroyed. Integrated Corrupted Authchip [Weapon] (+5). Complication: Lgt. Ion Engine rejected. Jacked G-47 Trooper... >>parse_system Reading system data... Jacked G-47 Trooper... Connecting with Recycling Unit... ALERT: Suspicious activity at Recycling Unit M001. Dispatching Investigation squad. Slammed into G-47 Trooper. Critical hit (Burn: +37). Map ----- +----------------------------------------------------+ | ????????????"?????????# #???###?######??# #?# | | ???????????????######## #################r### | | ??????? !!! + a #?# ! | | ??????????? ???############## ############### | | ????????????? ?????????######+############### | | ???????????? ?????#????# """ + + ""T" | | ???????????????#?#?? ?# "T"a ############# """" | | ?????????????#?????? ?# ##????#?###?###### | | ????????????? ????? g# ##?#?########?#?## | | ????????????? ?? ??w + g ###???# ??#?# | | ????????????????? ???? # """"" ####??# #?# | | ????????????????##?#?? # """"" #??#### """ #?# | | ???????????????#?##? ? # """""!#?##### """"" ##? | | ???????????????#?#?#?? # ] [ ####?## """"" ##? | | ??????????????###??#?g?## #########?### """"" #?# | | ?? S" ## #???#### ####?###?##??### """ #?? | | ?? ## #??????# #??#???##??#?### ##? | | ?? ## #?###?## ##???####??#?#?# #?? | | ??####### ####### gb###################+###### | | ????????# # # g w | | ??####### # # " [% | | ?? # # # g = = | | ??" # + # #####g###########+######+# | | ??"" # # ####### g """ ### * !## | | ??"" + # ##??#?# "Y" ###""" ## | | ??"" # # #######@ ###""" ## | | ??" ## ######+# ## ! ###""" ## | | ?? ## #????# # ## ### ## | | ?? ## ##?### # ## """ """ ###""" ## | | ??######## #???## # ## """ """ ###""" ## | | ?? #???# #????# # ## """ """ #?#""" #####+# | | ?? #?###+###### # ############## ## | | ?? #?# #?#w# #?#?###?#??###""" ## | | ?? #?# #?# # #?#?##?#?#####""" ## | | ??####?# """ ### # ###?#????#?###""" ## | | ???????# """ ### ##+################ ####### | | ???????# """ + ##?#########?# | | ???????# ### ########### #?#####??###?# | | ???????########?# ######?#?## ############## | | ??????????####### # ????# a | | ????????????????? ?? ????? ? #?# ########### | | ????????????????#? ? ?""? #?# #?#?#??#### | | ????????????????+ ? ????"?????# #####?##?## | | ?????????????????? ? ? ??????## #?#?##?#??# ##### | | ?????????????????? ? ?##??#??###+####?#?#### #[ / | | ??????????????#??+## #?####### ######?# # | | ???????????????? ?# #?# # #####?## # | | ????????????????"??# ### # ###?#### #! | | ???????????????????+ T + ! #####?## # | | ????????????????? # ### # #??###?#+##### | +----------------------------------------------------+ Best States ------------- Heat Dissipation 31 Energy Generation 15 Energy Capacity 250 Matter Stores 300 Matter Capacity 300 Sight Range 18 Robot Scan Range 14 Terrain Scan Range 16 Terrain Scan Density 10 Evasion (%) 64 Recoil Reduction 2 Defensive Hacking 10 Authchip Count 1 Item Schematics ----------------- None Robot Schematics ------------------ None Fabricated ------------ Nothing Repaired ---------- Nothing Alien Tech Used ----------------- None Achievements -------------- None Challenges ------------ None Game ------ Seed PhaseAntigravSword Manual? 0 Play Time 00:52:22 Cumulative 9.8 hours Start 2025.09.06 @ 14:10:52 End 2025.09.06 @ 15:03:35 Sessions 1 Manual Loads 0 Difficulty Rogue Special Mode None Game No. 11 Rogue 11 Adventurer 0 Explorer 0 Win Type - Total 0 Types 0/0/0/0/0/0/0/0/0/0 Lore% 9 Gallery% 12 Achievement% 16 Wizard Run 0 Options --------- Layout 1 ASCII 0 Keyboard 0 Movement Mouse Keybinds 0 Fullscreen 1 Font 24/Smallcaps Map View 50x35 Zoom Use 0% Tactical HUD 0 Map Filters NONE Filters NONE Steam 1 RUN: 3753df3b-efa0-48b6-90d7-98782b959cd9